[Event "Titled Tuesday Blitz November 01 Late 2022"]
[White "Szente Varga, Fruzsina"]
[Black "Kirillov, Dmitry"]
[WhiteFideId "712264"]
[BlackFideId "34180572"]
[WhiteElo "1994"]
[BlackElo "2095"]
[Result "0-1"]
[Round "04"]
[TimeControl "180+1"]
[Date "2022.11.02"]
[WhiteClock "0:00:16"]
[BlackClock "0:00:10"]

1. e4 {[%clk 0:03:00]}  c6 {[%clk 0:02:52]} 2. d4 {[%clk 0:03:00]}  d5 {[%clk 0:02:53]} 3. Nc3 {[%clk 0:03:01]}  dxe4 {[%clk 0:02:53]} 4. Nxe4 {[%clk 0:03:02]}  Nf6 {[%clk 0:02:53]} 5. Nxf6+ {[%clk 0:03:01]}  exf6 {[%clk 0:02:54]} 6. c3 {[%clk 0:03:02]}  Bd6 {[%clk 0:02:55]} 7. Bd3 {[%clk 0:03:02]}  O-O {[%clk 0:02:55]} 8. Qc2 {[%clk 0:03:03]}  Re8+ {[%clk 0:02:56]} 9. Ne2 {[%clk 0:03:04]}  h5 {[%clk 0:02:56]} 10. Bd2 {[%clk 0:03:00]}  Nd7 {[%clk 0:02:53]} 11. O-O-O {[%clk 0:03:00]}  Nf8 {[%clk 0:02:54]} 12. Ng3 {[%clk 0:02:58]}  h4 {[%clk 0:02:12]} 13. Nf5 {[%clk 0:02:57]}  Bxf5 {[%clk 0:02:12]} 14. Bxf5 {[%clk 0:02:57]}  Re2 {[%clk 0:02:11]} 15. Qd3 {[%clk 0:02:38]}  Rxf2 {[%clk 0:02:07]} 16. g3 {[%clk 0:02:38]}  Qa5 {[%clk 0:02:04]} 17. Bh3 {[%clk 0:02:25]}  Qxa2 {[%clk 0:01:59]} 18. gxh4 {[%clk 0:02:25]}  Qa1+ {[%clk 0:01:47]} 19. Kc2 {[%clk 0:02:25]}  Qa4+ {[%clk 0:01:47]} 20. Kb1 {[%clk 0:02:25]}  Re8 {[%clk 0:01:41]} 21. Rde1 {[%clk 0:02:06]}  Rxe1+ {[%clk 0:01:34]} 22. Rxe1 {[%clk 0:02:07]}  Rxh2 {[%clk 0:01:32]} 23. Rg1 {[%clk 0:01:58]}  b5 {[%clk 0:01:21]} 24. Bh6 {[%clk 0:01:50]}  g6 {[%clk 0:01:12]} 25. h5 {[%clk 0:01:45]}  Qb3 {[%clk 0:01:09]} 26. Bc1 {[%clk 0:01:45]}  g5 {[%clk 0:01:04]} 27. Bg4 {[%clk 0:01:29]}  a5 {[%clk 0:00:57]} 28. Bd1 {[%clk 0:01:29]}  Qd5 {[%clk 0:00:50]} 29. Bc2 {[%clk 0:01:25]}  a4 {[%clk 0:00:46]} 30. Rf1 {[%clk 0:01:11]}  Kg7 {[%clk 0:00:44]} 31. Rf5 {[%clk 0:01:09]}  Qg2 {[%clk 0:00:41]} 32. Be3 {[%clk 0:00:53]}  Ne6 {[%clk 0:00:36]} 33. Rf2 {[%clk 0:00:52]}  Rh1+ {[%clk 0:00:22]} 34. Ka2 {[%clk 0:00:51]}  Qd5+ {[%clk 0:00:22]} 35. b3 {[%clk 0:00:50]}  Rxh5 {[%clk 0:00:23]} 36. c4 {[%clk 0:00:33]}  axb3+ {[%clk 0:00:20]} 37. Bxb3 {[%clk 0:00:33]}  bxc4 {[%clk 0:00:21]} 38. Bxc4 {[%clk 0:00:33]}  Qa5+ {[%clk 0:00:20]} 39. Kb2 {[%clk 0:00:33]}  Rh1 {[%clk 0:00:11]} 40. Qb3 {[%clk 0:00:30]}  Qa1+ {[%clk 0:00:10]} 41. Kc2 {[%clk 0:00:30]}  Qd1+ {[%clk 0:00:10]} 42. Kc3 {[%clk 0:00:29]}  Qxb3+ {[%clk 0:00:10]} 43. Bxb3 {[%clk 0:00:29]}  Rh3 {[%clk 0:00:10]} 44. Kd2 {[%clk 0:00:28]}  Bf4 {[%clk 0:00:07]} 45. Bxf4 {[%clk 0:00:27]}  Nxf4 {[%clk 0:00:08]} 46. Ba2 {[%clk 0:00:25]}  Rd3+ {[%clk 0:00:07]} 47. Kc2 {[%clk 0:00:25]}  Rxd4 {[%clk 0:00:08]} 48. Kc3 {[%clk 0:00:25]}  Rd3+ {[%clk 0:00:07]} 49. Kc4 {[%clk 0:00:25]}  Rd5 {[%clk 0:00:06]} 50. Kc3 {[%clk 0:00:25]}  Rc5+ {[%clk 0:00:05]} 51. Kd4 {[%clk 0:00:25]}  Ra5 {[%clk 0:00:05]} 52. Bc4 {[%clk 0:00:24]}  Ne6+ {[%clk 0:00:05]} 53. Ke4 {[%clk 0:00:21]}  Kg6 {[%clk 0:00:04]} 54. Bd3 {[%clk 0:00:21]}  Re5+ {[%clk 0:00:05]} 55. Kf3+ {[%clk 0:00:20]}  Kg7 {[%clk 0:00:05]} 56. Kg4 {[%clk 0:00:20]}  Nf4 {[%clk 0:00:05]} 57. Bf5 {[%clk 0:00:20]}  Re2 {[%clk 0:00:05]} 58. Rf1 {[%clk 0:00:18]}  Rg2+ {[%clk 0:00:05]} 59. Kf3 {[%clk 0:00:18]}  Rd2 {[%clk 0:00:05]} 60. Kg4 {[%clk 0:00:19]}  Rg2+ {[%clk 0:00:05]} 61. Kf3 {[%clk 0:00:19]}  Rb2 {[%clk 0:00:06]} 62. Kg4 {[%clk 0:00:18]}  Nd5 {[%clk 0:00:07]} 63. Rf3 {[%clk 0:00:16]}  Rb4+ {[%clk 0:00:07]} 64. Kh3 {[%clk 0:00:15]}  Rh4+ {[%clk 0:00:06]} 65. Kg2 {[%clk 0:00:15]}  Nf4+ {[%clk 0:00:06]} 66. Kg3 {[%clk 0:00:15]}  Rh1 {[%clk 0:00:04]} 67. Rc3 {[%clk 0:00:14]}  Ne2+ {[%clk 0:00:03]} 68. Kf3 {[%clk 0:00:14]}  Nxc3 {[%clk 0:00:04]} 69. Ke3 {[%clk 0:00:14]}  Rf1 {[%clk 0:00:04]} 70. Bd3 {[%clk 0:00:13]}  Rf4 {[%clk 0:00:04]} 71. Kd2 {[%clk 0:00:13]}  Nd5 {[%clk 0:00:05]} 72. Bb1 {[%clk 0:00:12]}  Rd4+ {[%clk 0:00:05]} 73. Ke2 {[%clk 0:00:12]}  Nc3+ {[%clk 0:00:06]} 74. Ke3 {[%clk 0:00:11]}  Nxb1 {[%clk 0:00:06]} 75. Kxd4 {[%clk 0:00:12]}  g4 {[%clk 0:00:07]} 76. Ke3 {[%clk 0:00:12]}  c5 {[%clk 0:00:07]} 77. Kf4 {[%clk 0:00:13]}  c4 {[%clk 0:00:08]} 78. Kxg4 {[%clk 0:00:14]}  c3 {[%clk 0:00:08]} 79. Kf3 {[%clk 0:00:14]}  c2 {[%clk 0:00:09]} 80. Ke4 {[%clk 0:00:15]}  c1=Q {[%clk 0:00:10]} 81. Kd5 {[%clk 0:00:16]}  Qd2+ {[%clk 0:00:10]} 0-1


[Site "https://www.chess.com"]

[Event "Titled Tuesday Blitz November 01 Late 2022"]
[White "Tanenbaum, Zachary"]
[Black "Herman, Daniel"]
[WhiteFideId "2060850"]
[BlackFideId "30935008"]
[WhiteElo "2175"]
[BlackElo "1897"]
[Result "0-1"]
[Round "04"]
[TimeControl "180+1"]
[Date "2022.11.02"]
[WhiteClock "0:00:10"]
[BlackClock "0:00:43"]

1. e4 {[%clk 0:03:00]}  Nf6 {[%clk 0:03:00]} 2. e5 {[%clk 0:03:01]}  Nd5 {[%clk 0:03:00]} 3. d4 {[%clk 0:03:02]}  d6 {[%clk 0:03:00]} 4. Nf3 {[%clk 0:03:02]}  dxe5 {[%clk 0:02:59]} 5. Nxe5 {[%clk 0:03:03]}  Bf5 {[%clk 0:02:55]} 6. Qf3 {[%clk 0:02:56]}  e6 {[%clk 0:02:55]} 7. Bd3 {[%clk 0:02:56]}  Qf6 {[%clk 0:02:41]} 8. Bxf5 {[%clk 0:02:12]}  Qxf5 {[%clk 0:02:42]} 9. Qxf5 {[%clk 0:02:11]}  exf5 {[%clk 0:02:43]} 10. a3 {[%clk 0:02:02]}  Nd7 {[%clk 0:02:37]} 11. Nxd7 {[%clk 0:02:02]}  Kxd7 {[%clk 0:02:38]} 12. O-O {[%clk 0:02:01]}  b5 {[%clk 0:02:34]} 13. Nd2 {[%clk 0:01:57]}  g6 {[%clk 0:02:33]} 14. Nb3 {[%clk 0:01:56]}  a5 {[%clk 0:02:27]} 15. a4 {[%clk 0:01:55]}  b4 {[%clk 0:02:24]} 16. Re1 {[%clk 0:01:54]}  Bd6 {[%clk 0:02:23]} 17. Bd2 {[%clk 0:01:52]}  Nb6 {[%clk 0:02:18]} 18. Bg5 {[%clk 0:01:24]}  Rhe8 {[%clk 0:02:04]} 19. Rxe8 {[%clk 0:01:16]}  Rxe8 {[%clk 0:02:04]} 20. Kf1 {[%clk 0:01:07]}  Nc4 {[%clk 0:02:03]} 21. Rb1 {[%clk 0:01:04]}  Kc6 {[%clk 0:01:56]} 22. Nd2 {[%clk 0:01:02]}  Kd5 {[%clk 0:01:49]} 23. Nxc4 {[%clk 0:00:59]}  Kxc4 {[%clk 0:01:50]} 24. Rd1 {[%clk 0:00:59]}  b3 {[%clk 0:01:42]} 25. c3 {[%clk 0:00:57]}  c6 {[%clk 0:01:30]} 26. g3 {[%clk 0:00:55]}  Re4 {[%clk 0:01:24]} 27. Bd8 {[%clk 0:00:45]}  Re8 {[%clk 0:01:19]} 28. Bg5 {[%clk 0:00:41]}  Re4 {[%clk 0:01:18]} 29. f3 {[%clk 0:00:37]}  Re8 {[%clk 0:01:15]} 30. Kf2 {[%clk 0:00:38]}  Bc7 {[%clk 0:01:11]} 31. Rd2 {[%clk 0:00:35]}  Re6 {[%clk 0:01:08]} 32. Be3 {[%clk 0:00:30]}  f4 {[%clk 0:01:02]} 33. Bxf4 {[%clk 0:00:30]}  Bxf4 {[%clk 0:01:01]} 34. gxf4 {[%clk 0:00:31]}  Rf6 {[%clk 0:00:49]} 35. Kg3 {[%clk 0:00:30]}  Re6 {[%clk 0:00:50]} 36. Kf2 {[%clk 0:00:30]}  Rf6 {[%clk 0:00:50]} 37. Kg3 {[%clk 0:00:11]}  Re6 {[%clk 0:00:50]} 38. f5 {[%clk 0:00:09]}  gxf5 {[%clk 0:00:40]} 39. Kf4 {[%clk 0:00:09]}  Re1 {[%clk 0:00:41]} 40. Kxf5 {[%clk 0:00:09]}  Rc1 {[%clk 0:00:41]} 41. f4 {[%clk 0:00:07]}  Rc2 {[%clk 0:00:40]} 42. Rd1 {[%clk 0:00:06]}  Rxb2 {[%clk 0:00:40]} 43. Kf6 {[%clk 0:00:05]}  Rf2 {[%clk 0:00:40]} 44. f5 {[%clk 0:00:05]}  b2 {[%clk 0:00:40]} 45. Re1 {[%clk 0:00:03]}  Kxc3 {[%clk 0:00:39]} 46. Rb1 {[%clk 0:00:02]}  Kc2 {[%clk 0:00:39]} 47. Rxb2+ {[%clk 0:00:02]}  Kxb2 {[%clk 0:00:40]} 48. h4 {[%clk 0:00:02]}  Kb3 {[%clk 0:00:40]} 49. h5 {[%clk 0:00:02]}  Kxa4 {[%clk 0:00:39]} 50. h6 {[%clk 0:00:03]}  Kb4 {[%clk 0:00:39]} 51. Kxf7 {[%clk 0:00:03]}  Rxf5+ {[%clk 0:00:39]} 52. Kg7 {[%clk 0:00:04]}  Rg5+ {[%clk 0:00:39]} 53. Kxh7 {[%clk 0:00:04]}  Rh5 {[%clk 0:00:39]} 54. d5 {[%clk 0:00:05]}  cxd5 {[%clk 0:00:39]} 55. Kg6 {[%clk 0:00:05]}  Rxh6+ {[%clk 0:00:39]} 56. Kg7 {[%clk 0:00:04]}  d4 {[%clk 0:00:40]} 57. Kf7 {[%clk 0:00:05]}  d3 {[%clk 0:00:40]} 58. Ke7 {[%clk 0:00:05]}  Kc5 {[%clk 0:00:40]} 59. Kd7 {[%clk 0:00:06]}  Rd6+ {[%clk 0:00:40]} 60. Kc7 {[%clk 0:00:07]}  d2 {[%clk 0:00:40]} 61. Kb7 {[%clk 0:00:08]}  Rc6 {[%clk 0:00:40]} 62. Ka7 {[%clk 0:00:09]}  Rb6 {[%clk 0:00:40]} 63. Ka8 {[%clk 0:00:09]}  Kc6 {[%clk 0:00:41]} 64. Ka7 {[%clk 0:00:10]}  Kc7 {[%clk 0:00:42]} 65. Ka8 {[%clk 0:00:10]}  Ra6# {[%clk 0:00:43]} 0-1


[Site "https://www.chess.com"]

[Event "Titled Tuesday Blitz November 01 Late 2022"]
[White "Tayar, Jonathan"]
[Black "Brown, Andrew"]
[WhiteFideId "2606534"]
[BlackFideId "3206513"]
[WhiteElo "2406"]
[BlackElo "2245"]
[Result "1-0"]
[Round "04"]
[TimeControl "180+1"]
[Date "2022.11.02"]
[WhiteClock "0:00:06"]
[BlackClock "0:00:05"]

1. e4 {[%clk 0:03:00]}  g6 {[%clk 0:02:58]} 2. d4 {[%clk 0:03:00]}  Bg7 {[%clk 0:02:58]} 3. Nc3 {[%clk 0:02:59]}  c6 {[%clk 0:02:58]} 4. Bc4 {[%clk 0:02:57]}  d6 {[%clk 0:02:56]} 5. Qf3 {[%clk 0:02:57]}  e6 {[%clk 0:02:55]} 6. Nge2 {[%clk 0:02:51]}  a5 {[%clk 0:02:51]} 7. a4 {[%clk 0:02:42]}  Nd7 {[%clk 0:02:49]} 8. Bf4 {[%clk 0:02:38]}  Nb6 {[%clk 0:02:10]} 9. Bb3 {[%clk 0:02:33]}  Ne7 {[%clk 0:02:08]} 10. h4 {[%clk 0:02:30]}  h5 {[%clk 0:02:06]} 11. Bg5 {[%clk 0:02:28]}  O-O {[%clk 0:02:03]} 12. O-O-O {[%clk 0:02:20]}  Qc7 {[%clk 0:01:51]} 13. g4 {[%clk 0:01:47]}  hxg4 {[%clk 0:01:48]} 14. Qxg4 {[%clk 0:01:48]}  e5 {[%clk 0:01:43]} 15. Qf3 {[%clk 0:01:46]}  Be6 {[%clk 0:01:30]} 16. Bxe6 {[%clk 0:01:35]}  fxe6 {[%clk 0:01:30]} 17. Qh3 {[%clk 0:01:36]}  Qd7 {[%clk 0:01:26]} 18. h5 {[%clk 0:01:12]}  exd4 {[%clk 0:01:14]} 19. Nxd4 {[%clk 0:01:11]}  e5 {[%clk 0:01:07]} 20. Ne6 {[%clk 0:00:52]}  Rf3 {[%clk 0:00:44]} 21. Qxf3 {[%clk 0:00:42]}  Qxe6 {[%clk 0:00:43]} 22. hxg6 {[%clk 0:00:34]}  Nxg6 {[%clk 0:00:42]} 23. Qh5 {[%clk 0:00:29]}  Kf7 {[%clk 0:00:33]} 24. Be3 {[%clk 0:00:20]}  Nc4 {[%clk 0:00:30]} 25. Rdg1 {[%clk 0:00:15]}  Rg8 {[%clk 0:00:20]} 26. Rg3 {[%clk 0:00:12]}  Nxe3 {[%clk 0:00:14]} 27. fxe3 {[%clk 0:00:13]}  Bf6 {[%clk 0:00:12]} 28. Rhg1 {[%clk 0:00:11]}  Be7 {[%clk 0:00:12]} 29. Qf5+ {[%clk 0:00:10]}  Qf6 {[%clk 0:00:06]} 30. Rf1 {[%clk 0:00:06]}  Qxf5 {[%clk 0:00:06]} 31. exf5 {[%clk 0:00:07]}  Nf8 {[%clk 0:00:05]} 32. Rxg8 {[%clk 0:00:08]}  Kxg8 {[%clk 0:00:05]} 33. e4 {[%clk 0:00:07]}  Nh7 {[%clk 0:00:06]} 34. Kd1 {[%clk 0:00:07]}  Bg5 {[%clk 0:00:05]} 35. Ne2 {[%clk 0:00:07]}  Kf7 {[%clk 0:00:05]} 36. Nc1 {[%clk 0:00:07]}  d5 {[%clk 0:00:05]} 37. Nd3 {[%clk 0:00:06]}  Kf6 {[%clk 0:00:05]} 38. exd5 {[%clk 0:00:06]}  cxd5 {[%clk 0:00:05]} 39. Nc5 {[%clk 0:00:07]}  Nf8 {[%clk 0:00:03]} 40. Nxb7 {[%clk 0:00:06]}  e4 {[%clk 0:00:03]} 41. Nxa5 {[%clk 0:00:06]}  Ke5 {[%clk 0:00:03]} 42. Nc6+ {[%clk 0:00:07]}  Kd6 {[%clk 0:00:03]} 43. Nd4 {[%clk 0:00:07]}  Bf6 {[%clk 0:00:02]} 44. c3 {[%clk 0:00:07]}  Kc5 {[%clk 0:00:02]} 45. a5 {[%clk 0:00:07]}  Kc4 {[%clk 0:00:02]} 46. Ne6 {[%clk 0:00:07]}  Nd7 {[%clk 0:00:01]} 47. Nd4 {[%clk 0:00:07]}  Kd3 {[%clk 0:00:02]} 48. a6 {[%clk 0:00:06]}  e3 {[%clk 0:00:03]} 49. Re1 {[%clk 0:00:06]}  Bxd4 {[%clk 0:00:03]} 50. cxd4 {[%clk 0:00:06]}  Nb6 {[%clk 0:00:03]} 51. a7 {[%clk 0:00:06]}  Nc4 {[%clk 0:00:04]} 52. b3 {[%clk 0:00:06]}  Nb2+ {[%clk 0:00:04]} 53. Kc1 {[%clk 0:00:06]}  Kc3 {[%clk 0:00:05]} 54. Rxe3+ {[%clk 0:00:06]} 1-0


[Site "https://www.chess.com"]

[Event "Titled Tuesday Blitz November 01 Late 2022"]
[White "Valdes Romero, Leonardo"]
[Black "Vovk, Orest"]
[WhiteFideId "6500331"]
[BlackFideId "14113490"]
[WhiteElo "2494"]
[BlackElo "2215"]
[Result "1-0"]
[Round "04"]
[TimeControl "180+1"]
[Date "2022.11.02"]
[WhiteClock "0:00:05"]
[BlackClock "0:00:01"]

1. e4 {[%clk 0:02:59]}  g5 {[%clk 0:02:48]} 2. d3 {[%clk 0:02:56]}  h6 {[%clk 0:02:34]} 3. g3 {[%clk 0:02:54]}  Bg7 {[%clk 0:02:34]} 4. h4 {[%clk 0:02:49]}  d5 {[%clk 0:02:33]} 5. hxg5 {[%clk 0:02:47]}  dxe4 {[%clk 0:02:32]} 6. gxh6 {[%clk 0:02:40]}  Bxh6 {[%clk 0:02:15]} 7. Bxh6 {[%clk 0:02:10]}  Rxh6 {[%clk 0:02:16]} 8. Rxh6 {[%clk 0:02:09]}  Nxh6 {[%clk 0:02:17]} 9. Qh5 {[%clk 0:02:04]}  Qd6 {[%clk 0:02:10]} 10. Nc3 {[%clk 0:02:00]}  exd3 {[%clk 0:01:50]} 11. O-O-O {[%clk 0:01:24]}  Bg4 {[%clk 0:01:34]} 12. Qb5+ {[%clk 0:01:23]}  Nd7 {[%clk 0:01:12]} 13. Rxd3 {[%clk 0:01:18]}  Qc6 {[%clk 0:01:11]} 14. Qxc6 {[%clk 0:01:13]}  bxc6 {[%clk 0:01:12]} 15. Bg2 {[%clk 0:01:10]}  O-O-O {[%clk 0:00:59]} 16. Bxc6 {[%clk 0:01:08]}  Rh8 {[%clk 0:00:49]} 17. Re3 {[%clk 0:00:57]}  Nf5 {[%clk 0:00:45]} 18. Re1 {[%clk 0:00:57]}  Rh2 {[%clk 0:00:41]} 19. f3 {[%clk 0:00:51]}  Nb8 {[%clk 0:00:37]} 20. fxg4 {[%clk 0:00:43]}  Nxg3 {[%clk 0:00:36]} 21. Be8 {[%clk 0:00:34]}  f6 {[%clk 0:00:34]} 22. Nf3 {[%clk 0:00:31]}  Rf2 {[%clk 0:00:33]} 23. Nd4 {[%clk 0:00:31]}  e5 {[%clk 0:00:33]} 24. Nf5 {[%clk 0:00:30]}  Nxf5 {[%clk 0:00:31]} 25. gxf5 {[%clk 0:00:31]}  Rxf5 {[%clk 0:00:32]} 26. Nd5 {[%clk 0:00:30]}  Rf2 {[%clk 0:00:29]} 27. Rg1 {[%clk 0:00:28]}  c6 {[%clk 0:00:27]} 28. Nc3 {[%clk 0:00:27]}  f5 {[%clk 0:00:26]} 29. b3 {[%clk 0:00:26]}  e4 {[%clk 0:00:26]} 30. Rg8 {[%clk 0:00:26]}  Kc7 {[%clk 0:00:24]} 31. Rg7+ {[%clk 0:00:26]}  Kd8 {[%clk 0:00:19]} 32. Bg6 {[%clk 0:00:24]}  e3 {[%clk 0:00:18]} 33. Rf7 {[%clk 0:00:21]}  f4 {[%clk 0:00:18]} 34. Bh5 {[%clk 0:00:21]}  Nd7 {[%clk 0:00:16]} 35. Rf5 {[%clk 0:00:18]}  Ke7 {[%clk 0:00:13]} 36. Kb2 {[%clk 0:00:17]}  Ke6 {[%clk 0:00:12]} 37. Rf7 {[%clk 0:00:09]}  Nf6 {[%clk 0:00:08]} 38. Bg6 {[%clk 0:00:07]}  Rg2 {[%clk 0:00:08]} 39. Rg7 {[%clk 0:00:05]}  Nh5 {[%clk 0:00:06]} 40. Bf7+ {[%clk 0:00:05]}  Kf6 {[%clk 0:00:05]} 41. Rxg2 {[%clk 0:00:06]}  Kxf7 {[%clk 0:00:05]} 42. Rg5 {[%clk 0:00:05]}  Nf6 {[%clk 0:00:01]} 43. Rf5 {[%clk 0:00:05]} 1-0


[Site "https://www.chess.com"]

[Event "Titled Tuesday Blitz November 01 Late 2022"]
[White "Yanchenko, Roman"]
[Black "Tomaszewski, Kacper"]
[WhiteFideId "4137329"]
[BlackFideId "1127373"]
[WhiteElo "2782"]
[BlackElo "2554"]
[Result "1-0"]
[Round "04"]
[TimeControl "180+1"]
[Date "2022.11.02"]
[WhiteClock "0:01:28"]
[BlackClock "0:00:07"]

1. d4 {[%clk 0:02:58]}  d5 {[%clk 0:02:59]} 2. c4 {[%clk 0:02:58]}  e6 {[%clk 0:03:00]} 3. Nc3 {[%clk 0:02:58]}  a6 {[%clk 0:02:57]} 4. cxd5 {[%clk 0:02:58]}  exd5 {[%clk 0:02:57]} 5. Bf4 {[%clk 0:02:58]}  c6 {[%clk 0:02:57]} 6. e3 {[%clk 0:02:57]}  Bd6 {[%clk 0:02:55]} 7. Bg3 {[%clk 0:02:56]}  Ne7 {[%clk 0:02:55]} 8. Rb1 {[%clk 0:02:52]}  Bf5 {[%clk 0:02:51]} 9. Bd3 {[%clk 0:02:48]}  O-O {[%clk 0:02:50]} 10. b4 {[%clk 0:02:43]}  Qd7 {[%clk 0:02:39]} 11. a4 {[%clk 0:02:37]}  Bxd3 {[%clk 0:02:36]} 12. Qxd3 {[%clk 0:02:37]}  Nf5 {[%clk 0:02:36]} 13. Nf3 {[%clk 0:02:34]}  Nxg3 {[%clk 0:02:23]} 14. hxg3 {[%clk 0:02:33]}  h6 {[%clk 0:02:18]} 15. Ng5 {[%clk 0:02:30]}  f5 {[%clk 0:02:18]} 16. Nf3 {[%clk 0:02:28]}  Qe7 {[%clk 0:02:15]} 17. b5 {[%clk 0:02:27]}  axb5 {[%clk 0:02:12]} 18. axb5 {[%clk 0:02:28]}  Ra3 {[%clk 0:02:09]} 19. O-O {[%clk 0:02:27]}  Nd7 {[%clk 0:01:56]} 20. bxc6 {[%clk 0:02:27]}  bxc6 {[%clk 0:01:55]} 21. Rfc1 {[%clk 0:02:27]}  Kh8 {[%clk 0:01:42]} 22. Ra1 {[%clk 0:02:19]}  Rxa1 {[%clk 0:01:20]} 23. Rxa1 {[%clk 0:02:20]}  Qe6 {[%clk 0:01:19]} 24. Ra6 {[%clk 0:02:16]}  Rc8 {[%clk 0:01:19]} 25. Nh4 {[%clk 0:02:08]}  g6 {[%clk 0:00:54]} 26. g4 {[%clk 0:02:08]}  Qf6 {[%clk 0:00:43]} 27. g3 {[%clk 0:02:08]}  fxg4 {[%clk 0:00:33]} 28. Nxd5 {[%clk 0:01:49]}  cxd5 {[%clk 0:00:32]} 29. Qxg6 {[%clk 0:01:49]}  Rf8 {[%clk 0:00:19]} 30. f4 {[%clk 0:01:28]}  gxf3 {[%clk 0:00:16]} 31. Rxd6 {[%clk 0:01:28]}  f2+ {[%clk 0:00:16]} 32. Kf1 {[%clk 0:01:29]}  Qxg6 {[%clk 0:00:06]} 33. Nxg6+ {[%clk 0:01:28]}  Kg7 {[%clk 0:00:07]} 34. Nxf8 {[%clk 0:01:28]}  Nxf8 {[%clk 0:00:07]} 35. Rxd5 {[%clk 0:01:28]} 1-0


[Site "https://www.chess.com"]

[Event "Titled Tuesday Blitz November 01 Late 2022"]
[White "Zakhartsov, Vladimir"]
[Black "Melkumyan, Hrant"]
[WhiteFideId "4145097"]
[BlackFideId "13302485"]
[WhiteElo "2492"]
[BlackElo "2604"]
[Result "1/2-1/2"]
[Round "04"]
[TimeControl "180+1"]
[Date "2022.11.01"]
[WhiteClock "0:00:06"]
[BlackClock "0:00:05"]

1. d4 {[%clk 0:02:58]}  d5 {[%clk 0:02:58]} 2. c4 {[%clk 0:02:58]}  e6 {[%clk 0:02:59]} 3. Nf3 {[%clk 0:02:58]}  Nf6 {[%clk 0:02:59]} 4. g3 {[%clk 0:02:59]}  dxc4 {[%clk 0:02:59]} 5. Bg2 {[%clk 0:02:58]}  c6 {[%clk 0:03:00]} 6. Ne5 {[%clk 0:02:56]}  Bb4+ {[%clk 0:02:59]} 7. Nc3 {[%clk 0:02:56]}  Nd5 {[%clk 0:02:58]} 8. O-O {[%clk 0:02:52]}  Nxc3 {[%clk 0:02:56]} 9. bxc3 {[%clk 0:02:50]}  Bxc3 {[%clk 0:02:57]} 10. Ba3 {[%clk 0:02:49]}  Qxd4 {[%clk 0:02:57]} 11. Qxd4 {[%clk 0:02:12]}  Bxd4 {[%clk 0:02:58]} 12. Nxc4 {[%clk 0:02:13]}  Bxa1 {[%clk 0:02:58]} 13. Nd6+ {[%clk 0:02:03]}  Kd7 {[%clk 0:02:58]} 14. Rxa1 {[%clk 0:02:01]}  f6 {[%clk 0:02:55]} 15. Rd1 {[%clk 0:01:57]}  Kc7 {[%clk 0:02:48]} 16. Nf7 {[%clk 0:01:52]}  Rg8 {[%clk 0:02:48]} 17. Bd6+ {[%clk 0:01:52]}  Kb6 {[%clk 0:02:47]} 18. Rb1+ {[%clk 0:01:52]}  Ka6 {[%clk 0:02:44]} 19. a4 {[%clk 0:01:40]}  Bd7 {[%clk 0:02:06]} 20. Bc7 {[%clk 0:01:29]}  Rc8 {[%clk 0:01:57]} 21. Bf4 {[%clk 0:01:29]}  e5 {[%clk 0:01:53]} 22. Bd2 {[%clk 0:01:26]}  Be6 {[%clk 0:01:50]} 23. Nd6 {[%clk 0:01:23]}  Rd8 {[%clk 0:01:43]} 24. Bb4 {[%clk 0:01:23]}  b6 {[%clk 0:01:33]} 25. Be4 {[%clk 0:01:16]}  Rxd6 {[%clk 0:01:20]} 26. Bxd6 {[%clk 0:01:17]}  Kb7 {[%clk 0:01:18]} 27. a5 {[%clk 0:01:02]}  Na6 {[%clk 0:01:15]} 28. Bxh7 {[%clk 0:00:56]}  Rd8 {[%clk 0:01:15]} 29. Be7 {[%clk 0:00:56]}  Rd7 {[%clk 0:01:14]} 30. Bf8 {[%clk 0:00:55]}  Nc7 {[%clk 0:01:04]} 31. h4 {[%clk 0:00:52]}  Bc4 {[%clk 0:00:55]} 32. Rb2 {[%clk 0:00:49]}  Ne6 {[%clk 0:00:55]} 33. Bb4 {[%clk 0:00:41]}  Nd4 {[%clk 0:00:55]} 34. e3 {[%clk 0:00:37]}  Nf3+ {[%clk 0:00:56]} 35. Kg2 {[%clk 0:00:36]}  c5 {[%clk 0:00:35]} 36. Bc3 {[%clk 0:00:13]}  Bd5 {[%clk 0:00:27]} 37. e4 {[%clk 0:00:13]}  Bc6 {[%clk 0:00:28]} 38. axb6 {[%clk 0:00:07]}  axb6 {[%clk 0:00:28]} 39. Ba5 {[%clk 0:00:07]}  Ka6 {[%clk 0:00:09]} 40. Bxb6 {[%clk 0:00:04]}  Ne1+ {[%clk 0:00:08]} 41. Kf1 {[%clk 0:00:04]}  Nd3 {[%clk 0:00:09]} 42. Rb1 {[%clk 0:00:04]}  Bb5 {[%clk 0:00:10]} 43. Bf5 {[%clk 0:00:02]}  Rd4 {[%clk 0:00:07]} 44. Bc7 {[%clk 0:00:01]}  c4 {[%clk 0:00:07]} 45. Kg2 {[%clk 0:00:02]}  c3 {[%clk 0:00:07]} 46. Ra1+ {[%clk 0:00:01]}  Kb7 {[%clk 0:00:07]} 47. Ba5 {[%clk 0:00:02]}  c2 {[%clk 0:00:07]} 48. Bd2 {[%clk 0:00:03]}  Nf4+ {[%clk 0:00:06]} 49. gxf4 {[%clk 0:00:02]}  Rxd2 {[%clk 0:00:06]} 50. Rc1 {[%clk 0:00:03]}  Bd3 {[%clk 0:00:06]} 51. Bg4 {[%clk 0:00:02]}  Bxe4+ {[%clk 0:00:05]} 52. Kf1 {[%clk 0:00:03]}  f5 {[%clk 0:00:05]} 53. Ke1 {[%clk 0:00:02]}  Rd4 {[%clk 0:00:04]} 54. f3 {[%clk 0:00:02]}  fxg4 {[%clk 0:00:04]} 55. fxe4 {[%clk 0:00:02]}  Rxe4+ {[%clk 0:00:05]} 56. Kd2 {[%clk 0:00:02]}  Rc4 {[%clk 0:00:03]} 57. fxe5 {[%clk 0:00:02]}  g3 {[%clk 0:00:04]} 58. Kd3 {[%clk 0:00:02]}  Rc8 {[%clk 0:00:04]} 59. e6 {[%clk 0:00:02]}  g2 {[%clk 0:00:05]} 60. e7 {[%clk 0:00:02]}  Re8 {[%clk 0:00:02]} 61. Rg1 {[%clk 0:00:01]}  Rxe7 {[%clk 0:00:02]} 62. Kxc2 {[%clk 0:00:02]}  Re2+ {[%clk 0:00:02]} 63. Kd3 {[%clk 0:00:02]}  Ra2 {[%clk 0:00:03]} 64. Ke3 {[%clk 0:00:03]}  Kc6 {[%clk 0:00:04]} 65. Kf3 {[%clk 0:00:03]}  Kd5 {[%clk 0:00:04]} 66. Rxg2 {[%clk 0:00:04]}  Rxg2 {[%clk 0:00:02]} 67. Kxg2 {[%clk 0:00:05]}  Ke4 {[%clk 0:00:03]} 68. Kg3 {[%clk 0:00:05]}  Kf5 {[%clk 0:00:04]} 69. Kf3 {[%clk 0:00:06]}  g5 {[%clk 0:00:04]} 70. hxg5 {[%clk 0:00:06]}  Kxg5 {[%clk 0:00:05]} 1/2-1/2


[Site "https://www.chess.com"]